Cogmind - Beta 16 @@@ ROGUE MODE // 2025.12.28 @ 14:17:36 Player: Peregrine Result: Self-destructed Performance ------------- Evolutions (3) 1500 Regions Visited (6) 1200 Robots Destroyed (35) 175 Value Destroyed (809) 809 Prototype IDs (23) 460 Alien Tech Used (0) 0 Bonus (482) 482 TOTAL SCORE: 4626 Bonus ------- Follower Combat Kills 182 Aligned with FarCom 300 Cogmind --------- Core Integrity 666/700 Matter 155/300 Energy 100/100 System Corruption 0% Temperature Cool (0) Movement Walking (90) Location -7/Factory Parts ------- > --- POWER (2) -------- (None) > --- PROPULSION (2) --- Potential Leg Potential Leg > --- UTILITY (6) ------ Improved Heat Sink Small Storage Unit Signal Interpreter Reaction Control System > --- WEAPON (3) ------- Advanced Assault Cannon Rocket Launcher > --- INVENTORY (8) ---- Light Ion Engine Armored Wheel Armored Wheel Large Battery (200) Small Matter Pod (50) Terrain Scan Processor Peak State ------------ > --- POWER ------------ Light Nuclear Core > --- PROPULSION ------- Potential Leg Potential Leg > --- UTILITY ---------- Improved Heat Sink Small Storage Unit Signal Interpreter Reaction Control System > --- WEAPON ----------- Medium Laser Advanced Assault Cannon Rocket Launcher > --- INVENTORY -------- Light Ion Engine Armored Wheel Armored Wheel Large Battery Small Matter Pod Terrain Scan Processor [Rating: 38] Favorites ----------- Power Light Ion Engine Engine Light Ion Engine Power Core Light Nuclear Core Propulsion Improved Hover Unit Leg Potential Leg Wheel Armored Wheel Hover Unit Improved Hover Unit Utility Small Storage Unit Device Sensor Array Storage Small Storage Unit Processor Signal Interpreter Weapon Medium Laser Energy Gun Medium Laser Ballistic Gun Assault Rifle Ballistic Cannon Advanced Assault Cannon Launcher Rocket Launcher Special Weapon Mining Laser Build | -11 -10 -10 -10 -9 -8 -7 ------- Run | Yrd Mat Min Exi Min Mat Fac Slots Evolved 6 | . . . . . 4 2 Power 1 | . . . . . . 1 Propulsion . | . . . . . . . Utility 4 | . . . . . 4 . Weapon 1 | . . . . . . 1 Parts Attached 23 | . 11 3 3 . 4 2 Power 3 | . . 1 1 . 1 . Engine 2 | . . 1 1 . . . Core 1 | . . . . . 1 . Reactor . | . . . . . . . Propulsion 8 | . 6 . 2 . . . Treads . | . . . . . . . Leg 2 | . . . 2 . . . Wheel 2 | . 2 . . . . . Hover 4 | . 4 . . . . . Flight . | . . . . . . . Utility 5 | . 1 . . . 3 1 Device 4 | . 1 . . . 2 1 Storage . | . . . . . . . Processor 1 | . . . . . 1 . Hackware . | . . . . . . . Protection . | . . . . . . . Artifact . | . . . . . . . Weapon 7 | . 4 2 . . . 1 Energy Gun 4 | . 3 1 . . . . Energy Cannon . | . . . . . . . Ballistic Gun . | . . . . . . . Ballistic Cannon 1 | . . . . . . 1 Launcher 1 | . . 1 . . . . Special Weapon 1 | . 1 . . . . . Impact Weapon . | . . . . . . . Slashing Weapon . | . . . . . . . Piercing Weapon . | . . . . . . . Special Melee Weapon . | . . . . . . . Unidentified Prototypes . | . . . . . . . Parts Lost 10 | . 1 3 . . 4 2 Power 3 | . . 1 . . 1 1 Propulsion . | . . . . . . . Utility 2 | . . . . . 2 . Weapon 5 | . 1 2 . . 1 1 Highest Loss Streak 3 | . 1 3 . . 2 2 To Critical Strikes . | . . . . . . . Average Backups 7 | 6 7 7 7 7 6 6 Power 1 | 1 1 1 1 1 1 1 Propulsion 2 | 4 4 3 2 2 2 2 Utility 1 | . . 1 1 3 2 3 Weapon 1 | 1 1 1 1 1 1 . Tool/Special . | . . . . . . . Unused Backups 19 | . 9 2 3 . 1 4 Power 4 | . 1 1 1 . 1 . Propulsion 8 | . 6 . 1 . . 1 Utility 4 | . 1 . . . . 3 Weapon 3 | . 1 1 1 . . . Tool/Special . | . . . . . . . Average Slot Usage (%) 87 | . 84 98 99 100 73 66 Engine 10 | . 14 13 14 14 7 . Core 1 | . . . . . . 6 Leg 10 | . 2 . 12 28 18 15 Hover 13 | . 22 28 14 . . . Device 11 | . 1 14 14 14 13 12 Storage 12 | . 14 14 14 14 9 7 Processor 2 | . . . . . 7 7 Energy Gun 16 | . 24 20 14 14 16 6 Launcher 5 | . . 7 14 14 . 1 Peak Build Rating 38 | 6 11 11 27 26 33 38 Average Rating 19 | 6 9 10 18 26 29 35 On Entrance 16 | 6 6 11 11 26 26 30 Avg Prop Armor Cover (%) . | . . . . . . . Naked Turns . | . . . . . . . Heaviest Build 24 | 12 14 15 17 17 21 24 Greatest Support 60 | 20 24 14 60 60 60 60 Greatest Overweight (x) 4 | . 4 1 1 . . . Average Overweight (x) . | . . . . . . . Largest Inventory Capacity 8 | 8 8 8 8 8 8 8 Average Capacity 8 | 8 8 8 8 8 8 8 Most Carried 8 | 6 8 8 8 7 8 8 Average Carried 7 | 6 7 7 7 7 6 6 Final Capacity 8 | 8 8 8 8 8 8 8 Final Carried 8 | 6 7 8 7 7 7 6 Class Distribution -------------------- 83% | Mutant 16% | Skirmisher Dominant Class ---------------- Mutant | -10/Materials Mutant | -10/Mines Mutant | -10/Exiles Skirmisher | -9/Mines Mutant | -8/Materials Mutant | -7/Factory Resources | -11 -10 -10 -10 -9 -8 -7 ----------- Run | Yrd Mat Min Exi Min Mat Fac Matter Collected 633 | 200 150 84 30 44 50 75 Remotely . | . . . . . . . Salvage Created 960 | . 362 59 . 8 360 171 Parts 54 | . 24 2 . 3 13 12 Haulers Intercepted 1 | . 1 . . . . . Recyclers Shooed 2 | . . . . . . 2 Parts Field Recycled . | . . . . . . . Retrieved Matter . | . . . . . . . Parts Self-Destructed . | . . . . . . . Prevented . | . . . . . . . Parts Restored . | . . . . . . . Kills | -11 -10 -10 -10 -9 -8 -7 ------- Run | Yrd Mat Min Exi Min Mat Fac Combat Hostiles Destroyed 30 | . 10 6 . 3 5 6 Guns 17 | . 10 1 . 1 5 . Cannons 2 | . . . . . . 2 AOE 11 | . . 5 . 2 . 4 Classes Destroyed 10 | . 5 2 . . 1 2 Worker 2 | . . . . . . 2 Builder 1 | . . . . . 1 . Hauler 1 | . 1 . . . . . Recycler 3 | . . 1 . . 1 1 Mechanic 1 | . . . . . . 1 Operator 1 | . 1 . . . . . Watcher 1 | . 1 . . . . . Swarmer 13 | . 5 1 . 3 . 4 Grunt 12 | . 5 . . . 5 2 Assembled 5 | . . 5 . . . . Best Kill Streak 6 | . 3 6 . 3 3 5 Combat Bots Only 5 | . 3 5 . 3 2 4 Max Kills in Single Turn 3 | . 2 2 . 2 2 3 Gunslinging . | . . . . . . . Exploded 2 | . . 2 . 2 . 2 Melee . | . . . . . . . Uniques/NPCs Destroyed . | . . . . . . . Combat | -11 -10 -10 -10 -9 -8 -7 -------- Run | Yrd Mat Min Exi Min Mat Fac Hostile Shots Fired 166 | . 34 24 . 17 35 56 Missed 74 | . 13 7 . 11 13 30 Hits 92 | . 21 17 . 6 22 26 Projectile 92 | . 21 17 . 6 22 26 Damage Taken 1059 | . 216 145 . 50 416 232 Core 155 | . 33 38 . 9 41 34 Absorbed by Shields . | . . . . . . . Core Remaining (%) 86 | 100 . . . 68 92 . Volleys Fired 109 | . 29 11 . 8 36 25 Largest 3 | . 2 2 . 1 2 3 Hottest 145 | . 145 145 . 50 100 123 Shots Fired 189 | . 52 13 . 8 69 47 Gun 148 | . 50 8 . 4 69 17 Cannon 25 | . . . . . . 25 Launcher 13 | . . 4 . 4 . 5 Special 3 | . 2 1 . . . . Kinetic 25 | . . . . . . 25 Thermal 105 | . 12 3 . 4 69 17 Explosive 13 | . . 4 . 4 . 5 Electromagnetic 46 | . 40 6 . . . . Robot Hit Streak 11 | . 11 5 . 1 8 4 Robot Miss Streak 4 | . 3 4 . 3 4 3 Penetration Max . | . . . . . . . Secondary Targets 1 | . . . . . 1 . Max Gunslinging Chain 1 | . . . . . 1 . Shots Hit Robots 106 | . 32 9 . 1 42 22 Core Hits 70 | . 19 8 . 3 21 19 Critical Kills . | . . . . . . . Critical Parts Destroyed . | . . . . . . . Critical Strikes 4 | . . 1 . . 3 . Burn 4 | . . 1 . . 3 . Melee Attacks . | . . . . . . . Impact . | . . . . . . . Slashing . | . . . . . . . Piercing . | . . . . . . . Sneak Attacks . | . . . . . . . Combat Hostiles . | . . . . . . . Follow-up Attacks . | . . . . . . . Damage Inflicted 2668 | . 443 378 . 254 559 1034 Guns 1150 | . 410 83 . 24 559 74 Cannons 465 | . . . . . . 465 Explosions 1030 | . 33 295 . 230 . 472 Melee . | . . . . . . . Ramming 23 | . . . . . . 23 Kinetic 465 | . . . . . . 465 Thermal 740 | . 58 25 . 24 559 74 Explosive 997 | . . 295 . 230 . 472 Electromagnetic 443 | . 385 58 . . . . Impact . | . . . . . . . Slashing . | . . . . . . . Piercing . | . . . . . . . Highest Corruption 1 | . . . . . 1 . Average Corruption 1 | . . . . . 1 . Corruption Purged . | . . . . . . . Corruption Blocked . | . . . . . . . Overload Shots . | . . . . . . . Overflow Damage 37 | . 3 3 . 23 . 8 Projectiles 1 | . . . . . . 1 Explosions 33 | . 3 3 . 23 . 4 Melee 3 | . . . . . . 3 Knockbacks 4 | . . . . . . 4 Impact . | . . . . . . . Kinetic 4 | . . . . . . 4 Secondary . | . . . . . . . Self-Inflicted Damage 28 | . 28 . . . . . Shots 1 | . 1 . . . . . Rammed . | . . . . . . . Targets Rammed 1 | . . . . . . 1 Kicked 1 | . . . . . . 1 Crushed . | . . . . . . . Highest Temperature 190 | . 190 79 . 10 42 . Average Temperature 56 | . 71 46 . 7 12 . Received Heat Transfer 303 | . 42 . . . 210 51 Siege Activations . | . . . . . . . Martial Activations . | . . . . . . . Shielding Activations . | . . . . . . . Robots Disrupted . | . . . . . . . Combat Hostiles . | . . . . . . . Robots Corrupted 1 | . 1 . . . . . Combat Hostiles . | . . . . . . . Parts Fried . | . . . . . . . Impact Corruptions 1 | . . . . . . 1 Robots Melted . | . . . . . . . Combat Hostiles . | . . . . . . . Parts Melted 6 | . . . . . 6 . Heat Transferred 2455 | . 124 148 . 74 1887 222 Parts Sabotaged . | . . . . . . . Parts Stolen . | . . . . . . . Parts Stripped . | . . . . . . . Power Chain Reactions 1 | . 1 . . . . . Alert | -11 -10 -10 -10 -9 -8 -7 ------- Run | Yrd Mat Min Exi Min Mat Fac Maximum Alert Level . | . . . . . . . Low Security (%) 100 | 100 100 100 . 100 100 100 Level 1 . | . . . . . . . Level 2 . | . . . . . . . Level 3 . | . . . . . . . Level 4 . | . . . . . . . Level 5 . | . . . . . . . High Security . | . . . . . . . Max Security . | . . . . . . . Peak Influence 146 | . 146 67 . 120 107 130 Initial 56 | . . 56 . . 19 30 Average 39 | . 54 9 . 67 52 31 Influence Increases 969 | . 288 52 . 130 269 230 Destroy 0b10 Robot/C 620 | . 200 20 . 80 180 140 Destroy 0b10 Robot/NC 50 | . 15 5 . . 10 20 Destroy Leader 114 | . 44 . . 10 40 20 Allied During Kill 34 | . . . . 14 18 2 Successful Hack 16 | . 11 . . . 5 . Disable Machine 60 | . 15 . . . 15 30 Destroy Structure 75 | . 3 27 . 26 1 18 Influence Decreases 859 | . 142 198 . 80 250 189 Entered New Map 160 | . . 90 . . 31 39 Time Decay 519 | . 132 78 . 80 119 110 Lost Part 100 | . 10 30 . . 40 20 Lost Ally 80 | . . . . . 60 20 Squads Dispatched 9 | . 2 . . . 5 2 Investigation 4 | . 1 . . . 2 1 Extermination . | . . . . . . . Reinforcement 5 | . 1 . . . 3 1 Assault . | . . . . . . . Garrison . | . . . . . . . Intercept . | . . . . . . . Searches Triggered . | . . . . . . . Construction Impeded 1 | . . . . . . 1 Haulers Reinforced . | . . . . . . . Active Scanning Responses . | . . . . . . . Cargo Convoy Interrupts . | . . . . . . . Stealth | -11 -10 -10 -10 -9 -8 -7 --------- Run | Yrd Mat Min Exi Min Mat Fac Distress Signals . | . . . . . . . Communications Jammed . | . . . . . . . Distress Signals . | . . . . . . . Times Spotted 52 | . 14 7 . 3 16 12 Peak Tracking Total 6 | . 3 3 . 4 5 6 Tactical Retreats . | . . . . . . . Traps | -11 -10 -10 -10 -9 -8 -7 ------- Run | Yrd Mat Min Exi Min Mat Fac Traps Triggered 3 | . 2 . . . 1 . Indirectly . | . . . . . . . Trap Hack Attempts . | . . . . . . . Triggered . | . . . . . . . Disarmed . | . . . . . . . Reprogrammed . | . . . . . . . Reused . | . . . . . . . Traps Extracted . | . . . . . . . Installed . | . . . . . . . Triggered . | . . . . . . . Machines | -11 -10 -10 -10 -9 -8 -7 ---------- Run | Yrd Mat Min Exi Min Mat Fac Machines Disabled 4 | . 1 . . . 1 2 Max in Single Turn 1 | . 1 . . . . 1 Machines Repaired . | . . . . . . . Machines Dismantled . | . . . . . . . Machines Sabotaged . | . . . . . . . Overloaded Fab Kills . | . . . . . . . Hacking | -11 -10 -10 -10 -9 -8 -7 --------- Run | Yrd Mat Min Exi Min Mat Fac Machines Accessed 8 | . 4 . 1 . 2 1 Terminals 5 | . 4 . . . 1 . Fabricators 1 | . . . . . . 1 Repair Stations . | . . . . . . . Recycling Units . | . . . . . . . Scanalyzers 1 | . . . . . 1 . Garrison Access . | . . . . . . . Total Hacks 21 | . 8 . 1 . 9 3 Successful 6 | . 2 . 1 . 1 2 Failed 15 | . 6 . . . 8 1 Catastrophic 1 | . 1 . . . . . Database Lockouts . | . . . . . . . Manual 10 | . 6 . 2 . . 2 Terminals 12 | . 8 . . . 4 . Fabricators 3 | . . . . . . 3 Repair Stations . | . . . . . . . Recycling Units . | . . . . . . . Scanalyzers 5 | . . . . . 5 . Garrison Access . | . . . . . . . Terminal Hacks 3 | . 1 . 1 . 1 . Robot Analysis 1 | . . . . . 1 . Branch Access Points 1 | . 1 . . . . . Proto ID Catalog 1 | . . . 1 . . . Fabricator Hacks 1 | . . . . . . 1 Network Status 1 | . . . . . . 1 Repair Station Hacks . | . . . . . . . Recycling Unit Hacks . | . . . . . . . Scanalyzer . | . . . . . . . Garrison Access Hacks . | . . . . . . . Unauthorized Hacks 2 | . 1 . . . . 1 Terminals 1 | . 1 . . . . . Botnet 1 | . 1 . . . . . Fabricators 1 | . . . . . . 1 Liberate 1 | . . . . . . 1 Repair Stations . | . . . . . . . Recycling Units . | . . . . . . . Scanalyzers . | . . . . . . . Garrison Access . | . . . . . . . Data Cores Recovered . | . . . . . . . Used . | . . . . . . . Hacking Detections 6 | . 3 . . . 2 1 Full Trace Events 5 | . 2 . . . 2 1 Feedback Events . | . . . . . . . Feedback Blocked . | . . . . . . . Robot Schematics Acquired . | . . . . . . . Robots Built . | . . . . . . . Authchips . | . . . . . . . Time . | . . . . . . . Total Robot Build Rating . | . . . . . . . Part Schematics Acquired . | . . . . . . . Parts Built . | . . . . . . . Authchips . | . . . . . . . Time . | . . . . . . . Total Part Build Rating . | . . . . . . . Part Studies Acquired . | . . . . . . . Parts Repaired . | . . . . . . . Time . | . . . . . . . Parts Recycled . | . . . . . . . Recycled Matter . | . . . . . . . Retrieved Matter . | . . . . . . . Retrieved Components . | . . . . . . . Parts Scanalyzed . | . . . . . . . Part Schematics Acquired . | . . . . . . . Parts Damaged . | . . . . . . . Bothacking | -11 -10 -10 -10 -9 -8 -7 ------------ Run | Yrd Mat Min Exi Min Mat Fac Used RIF Installer . | . . . . . . . Robots Hacked . | . . . . . . . Non-combat . | . . . . . . . Combat . | . . . . . . . Robot Hacks Applied . | . . . . . . . Relay Couplers Released . | . . . . . . . Fabnet Peak Effective % . | . . . . . . . Robots Rewired 1 | . . . . . . 1 Allies Hacked . | . . . . . . . Hacks Repelled . | . . . . . . . Allies | -11 -10 -10 -10 -9 -8 -7 -------- Run | Yrd Mat Min Exi Min Mat Fac Total Allies 4 | . . 3 . . . 1 Largest Group 3 | . . 3 3 3 3 1 Highest-Rated Group 40 | . . 40 40 40 40 16 Highest-Rated Ally 16 | . . 16 16 16 16 16 Total Orders . | . . . . . . . Ally Attacks 58 | . . . . 5 45 8 Total Damage 551 | . . . . 44 426 81 Kills 6 | . . . . 1 4 1 Allies Corrupted . | . . . . . . . Allies Melted . | . . . . . . . Intel | -11 -10 -10 -10 -9 -8 -7 ------- Run | Yrd Mat Min Exi Min Mat Fac Active Infowar (turns) 1025 | . 32 417 290 185 101 . Sensors 1025 | . 32 417 290 185 101 . Robot Analysis Total 1 | . . . . . 1 . Derelict Logs Recovered 2 | . . 2 . . . . Drone Launches . | . . . . . . . Drone Recoveries . | . . . . . . . Exploration | -11 -10 -10 -10 -9 -8 -7 ------------- Run | Yrd Mat Min Exi Min Mat Fac Turns Passed 1781 | 8 370 417 290 185 265 246 Spaces Moved 1516 | 7 318 463 261 149 145 173 Core 3 | . 3 . . . . . Treads . | . . . . . . . Legs 623 | 7 18 . 131 149 145 173 Wheels 21 | . 21 . . . . . Hover 869 | . 276 463 130 . . . Flight . | . . . . . . . Fastest Speed 45 | 120 56 56 90 90 45 90 Average Speed 83 | 120 64 78 102 90 88 90 Slowest Speed 250 | 120 250 116 116 90 90 90 Overloaded Moves 5 | . . . . . 5 . Propulsion Burnouts . | . . . . . . . Robots Hopped . | . . . . . . . Potential Cave-ins . | . . . . . . . Cave-ins Triggered . | . . . . . . . Exploration Rate (%) 37 | 2 43 90 61 42 19 6 Regions Visited 6 Branch Regions 3 Pre-discovered Areas 2 | . . 1 . 1 . . Known Exits Taken 2 | . 1 . . . 1 . Unknown Exits Taken 4 | 1 . 1 1 1 . . Scrap Searched 2 | . . 1 . 1 . . Spaces Dug . | . . . . . . . Terrain Destroyed 90 | . 3 38 . 31 . 18 Melee . | . . . . . . . Projectile 3 | . . 1 . . . 2 AOE 87 | . 3 37 . 31 . 16 Terrain Rammed . | . . . . . . . Walls Destroyed . | . . . . . . . Machines Disabled . | . . . . . . . Actions | -11 -10 -10 -10 -9 -8 -7 --------- Run | Yrd Mat Min Exi Min Mat Fac Total 1839 | 6 428 501 283 191 212 218 Wait 144 | . 44 18 13 35 22 12 Move 1510 | 6 317 462 260 148 144 173 Hop . | . . . . . . . Pick Up 24 | . 11 5 2 . 4 2 Fast Attach 9 | . 6 . 2 . 1 . Attach 13 | . 4 3 . . 3 3 Detach 2 | . 2 . . . . . Swap 8 | . 5 1 1 . 1 . Drop 17 | . 10 1 5 . 1 . Fire 109 | . 29 11 . 8 36 25 Melee . | . . . . . . . Ram . | . . . . . . . Kick 1 | . . . . . . 1 Crush . | . . . . . . . Escape Stasis . | . . . . . . . Rewire 2 | . . . . . . 2 Trap . | . . . . . . . Miscellaneous . | . . . . . . . Route ------- -11/Scrapyard -10/Materials (discovered 3 exits: [*Mat] / *Min x2) -10/Mines (discovered 2 exits: [*Mat] / *Exi) -10/Exiles -9/Mines -8/Materials -7/Factory History --------- Turn | Location | Event 1 | -11/Scrapyard | Discovered new exit (range 3) 9 | -11/Scrapyard | Entered Materials 160 | -10/Materials | Discovered new exit (range 10) 265 | -10/Materials | Identified exit to Mines 308 | -10/Materials | Build established: Mutant 379 | -10/Materials | Entered Mines 382 | -10/Mines | Assembled infested the area 387 | -10/Mines | Assisted by a Guerilla fighting off Assembled 431 | -10/Mines | Lost 3 parts (1p2w) 498 | -10/Mines | Learned Materials interactive machine intel 509 | -10/Mines | Assisted by bots powering up and referring to "LRC-V3" 552 | -10/Mines | Received a Rocket Launcher from a helpful Derelict 612 | -10/Mines | Discovered new exit (range 15) 786 | -10/Mines | Deemed a non-threat by the Exiles lab entrance 786 | -10/Mines | Discovered new exit (range 5) 796 | -10/Mines | Entered Exiles 796 | -10/Exiles | Accompanied by 3 allies 825 | -10/Exiles | Met 8R-AWN 845 | -10/Exiles | Met EX-HEX 880 | -10/Exiles | Met EX-BIN 907 | -10/Exiles | Aligned with FarCom system 908 | -10/Exiles | Given EX-Vault access code 939 | -10/Exiles | Opened EX-Vault 948 | -10/Exiles | Found Potential Leg 951 | -10/Exiles | Found Potential Leg 969 | -10/Exiles | Warned to stay clear of 0b10 Research branches 995 | -10/Exiles | Met EX-DEC 1063 | -10/Exiles | Discovered new exit (range 14) 1086 | -10/Exiles | Left Exiles lab with Potential Leg 1086 | -10/Exiles | Entered Mines 1086 | -9/Mines | Accompanied by 3 allies 1087 | -9/Mines | Learned location of Storage (-9) 1165 | -9/Mines | Met a Derelict bent on vengeance 1226 | -9/Mines | Discovered new exit (range 9) 1271 | -9/Mines | Entered Materials 1271 | -8/Materials | Accompanied by 3 allies 1271 | -8/Materials | Evolved 4 slots: Utility x4 1272 | -8/Materials | Loaded intel: 19 interactive machine locations 1452 | -8/Materials | Lost 3 allies 1523 | -8/Materials | Discovered new exit (range 16) 1535 | -8/Materials | Identified exit to Factory 1536 | -8/Materials | Entered Factory 1536 | -7/Factory | Evolved 2 slots: Power x1, Weapon x1 1782 | -7/Factory | Self-destructed Last Messages --------------- 01734_ K-01 Serf collects debris. 01742_ Acquired 3 matter. 01754_ Destroyed VTOL Module. 01754_ S-27 Virus destroyed. 01758_ The unstable cave ceiling collapses. 01760_ M-13 Machinist repairs W-25 Informer Imp. Hover Unit. 01762_ U-05 Engineer lays Concrete. 01762_ Kicked U-05 Engineer out of the way. 01762_ Destroyed Terrain Scanner. 01762_ U-05 Engineer system corrupted by crushing effect. 01763_ ALERT: Construction progress impeded, dispatching reinforcements to local area. 01764_ U-05 Engineer builds a Wall. 01770_ U-05 Engineer lays Concrete. 01772_ Med. Laser destroyed. 01772_ U-05 Engineer lays Concrete. 01774_ U-05 Engineer builds a Wall. 01775_ The unstable cave ceiling collapses. 01777_ Lgt. Nuclear Core destroyed. 01778_ U-05 Engineer lays Concrete. Map ----- +----------------------------------------------------+ | """" #? #???????????????????????????????? | | """" ##########???????????????????????????????? | | """" #?????????????????????????????????????? | | """" #?????????????????????????????????????? | | """" #?????????????????????????????????????? | | """" #?????????????????????????????????????? | | #?????????????????????????????????????? | | """ #?????????????????????????????????????? | | """ #?????????????????????????????????????? | | """ #?????????????????????????????????????? | | #????#+#??????????????????????????????? | | #????# #????????##????????????????????? | | #????# #???????? #????????????????????? | | #????# #???????? #????????????????????? | | """" #????# #??????? #????????????????????? | | """ #????# #??????? ?????????????????????? | | """" ! #??### ###????? ?????????????????????? | | """" #??# #??? !#???????# ???????????? | | """" #??# #??""" #??#### ??????????? | | """" #??# #???"" #? ??????????? | | #### +???"" #! ??????????? | | #???"" +% ?????????? | | #??? # Y ?????????? | | ^ ##### # ?????????? | | """ """ %[% #??????????????? | | """ """ w @% u# #????????????? | | """ """ [ ????????? | | ""?????????? | | "" "" """??????????? | | ""R"" ""???????????? | | """" ???????????? | | u # ??????????? | | ? #?###??????????? | | ?################## ^ ?????????????? | | ?? ???????????????????? ????????????? | | ?????? ???????????????????? ????????????? | | ???????????w???????????????? ????????????? | | ????????????????????????????? ??????????????? | | ????????????????????????????? ????????????????? | | ????????????????????????????? ???????????????????? | | ?????????????????????????????????????????????????? | | ?????????????????????????????????????????????????? | | ?????????????????????????????????????????????????? | | ?????????????????????????????????????????????????? | | ?????????????????????????????????????????????????? | | ?????????????????????????????????????????????????? | | ?????????????????????????????????????????????????? | | ?????????????????????????????????????????????????? | | ?????????????????????????????????????????????????? | | ?????????????????????????????????????????????????? | +----------------------------------------------------+ Best States ------------- Heat Dissipation 48 Energy Generation 14 Energy Capacity 250 Matter Stores 300 Matter Capacity 300 Sight Range 16 Robot Scan Range 14 Terrain Scan Density 10 Evasion (%) 65 Item Schematics ----------------- None Robot Schematics ------------------ None Fabricated ------------ Nothing Repaired ---------- Nothing Studied --------- None Alien Tech Used ----------------- None Achievements -------------- None Challenges ------------ None Game ------ Seed ImpactScrapoidSource Manual? 0 Play Time 00:20:32 Cumulative 146.7 hours Start 2025.12.28 @ 13:46:44 End 2025.12.28 @ 14:17:36 Sessions 1 Manual Loads 0 Difficulty Rogue Special Mode None Game No. 176 Rogue 161 Adventurer 15 Explorer 0 Win Type - Total 7 Types 3/0/2/1/0/0/1/0/0/0 Lore% 51 Gallery% 68 Achievement% 47 Wizard Run 0 Options --------- Layout 0 ASCII 0 Keyboard 0 Movement Mouse Keybinds 0 Fullscreen 2 Font 36/Smallcaps Map View 76x50 Zoom Use 0% Tactical HUD 1 Map Filters NONE Filters NONE Steam 1 RUN: dd23a2c3-2cef-47cc-96a3-51899d4b3a0f